fUSD/lending_fUSD_20240319
["ID","MTS","AMOUNT","RATE_DAILY","PERIOD"]
[319511896,1710815453979,-500.0,0.00054794,120]
[319511897,1710815453989,-889.69,0.00054794,120]
[319511898,1710815453999,-425.61923216,0.00054794,120]
[319511899,1710815454010,-500.0,0.00054794,120]
[319511900,1710815454019,-500.0,0.00054794,120]
[319511901,1710815454028,-504.16117415,0.00054794,120]
[319511902,1710815454037,-500.0,0.00054794,120]
[319511903,1710815454047,-500.0,0.00054794,120]
[319511904,1710815454056,-500.0,0.00054794,120]
[319511905,1710815454065,-734.3,0.00054794,120]
[319511906,1710815454074,-545.99,0.00054794,120]
[319511907,1710815454084,-500.97062633,0.00054794,120]
[319511908,1710815454093,-1467.2,0.00054794,120]
[319511909,1710815454103,-500.0,0.00054794,120]
[319511910,1710815454112,-558.68,0.00054794,120]
[319511911,1710815454122,-500.0,0.00054794,120]
[319511912,1710815454131,-500.0,0.00054794,120]
[319511913,1710815454141,-352.20337186,0.00054794,120]
[319511914,1710815454150,-500.0,0.00054794,120]
[319511915,1710815454160,-2986.97,0.00054794,120]
[319511916,1710815454169,-500.0,0.00054794,120]
[319511917,1710815454178,-500.0,0.00054794,120]
[319511918,1710815454191,-500.0,0.00054794,120]
[319511919,1710815454201,-500.0,0.00054794,120]
[319511920,1710815454210,-768.85,0.00054794,120]
[319511921,1710815454219,-1718.89,0.00054794,120]
[319511922,1710815454231,-500.0,0.00054794,120]
[319511923,1710815454241,-500.0,0.00054794,120]
[319511924,1710815454250,-500.0,0.00054794,120]
[319511925,1710815454259,-486.68046714,0.00054794,120]
[319511926,1710815454268,-500.0,0.00054794,120]
[319511927,1710815454278,-500.0,0.00054794,120]
[319511928,1710815454287,-1053.97,0.00054794,120]
[319511929,1710815454297,-500.0,0.00054794,120]
[319511930,1710815454306,-500.0,0.00054794,120]
[319511931,1710815454316,-500.0,0.00054794,120]
[319511932,1710815454325,-500.0,0.00054794,120]
[319511933,1710815454334,-500.0,0.00054794,120]
[319511934,1710815454343,-500.0,0.00054794,120]
[319511935,1710815454353,-500.0,0.00054794,120]
[319511936,1710815454363,-500.0,0.00054794,120]
[319511937,1710815454372,-500.0,0.00054794,120]
[319511938,1710815454382,-500.0,0.00054794,120]
[319511939,1710815454391,-2000.0,0.00054794,120]
[319511940,1710815454401,-500.0,0.00054794,120]
[319511941,1710815454411,-795.55,0.00054794,120]
[319511942,1710815454420,-686.9,0.00054794,120]
[319511943,1710815454429,-500.0,0.00054794,120]
[319511944,1710815454439,-509.82,0.00054794,120]
[319511945,1710815454448,-636.7762619,0.00054794,120]
[319511946,1710815454457,-500.0,0.00054794,120]
[319511947,1710815454466,-500.0,0.00054794,120]
[319511948,1710815454475,-831.89,0.00054794,120]
[319511949,1710815454486,-151.0,0.00054794,120]
[319511950,1710815454495,-500.0,0.00054794,120]
[319511951,1710815454504,-500.0,0.00054794,120]
[319511952,1710815454513,-5220.64,0.00054794,120]
[319511953,1710815454523,-500.0,0.00054794,120]
[319511954,1710815454532,-500.0,0.00054794,120]
[319511955,1710815454541,-501.63710455,0.00054794,120]
[319511956,1710815454550,-500.0,0.00054794,120]
[319511957,1710815454559,-500.0,0.00054794,120]
[319511958,1710815454568,-500.0,0.00054794,120]
[319511959,1710815454577,-1115.2,0.00054794,120]
[319511960,1710815454586,-500.0,0.00054794,120]
[319511961,1710815454594,-500.0,0.00054794,120]
[319511962,1710815454603,-3400.1,0.00054794,120]
[319511963,1710815454613,-500.0,0.00054794,120]
[319511964,1710815454622,-520.93,0.00054794,120]
[319511965,1710815454631,-500.0,0.00054794,120]
[319511966,1710815454640,-500.0,0.00054794,120]
[319511967,1710815454649,-500.0,0.00054794,120]
[319511968,1710815454658,-500.0,0.00054794,120]
[319511969,1710815454669,-500.0,0.00054794,120]
[319511970,1710815454678,-504.46307337,0.00054794,120]
[319511971,1710815454688,-500.0,0.00054794,120]
[319511972,1710815454697,-506.12504273,0.00054794,120]
[319511973,1710815454706,-1814.97,0.00054794,120]
[319511974,1710815454715,-13598.94,0.00054794,120]
[319511975,1710815454724,-1617.46,0.00054794,120]
[319511976,1710815454733,-500.0,0.00054794,120]
[319511977,1710815454743,-500.0,0.00054794,120]
[319511978,1710815454752,-500.0,0.00054794,120]
[319511979,1710815454762,-500.0,0.00054794,120]
[319511980,1710815454771,-500.0,0.00054794,120]
[319511981,1710815454780,-500.0,0.00054794,120]
[319511982,1710815454790,-980.92,0.00054794,120]
[319511983,1710815454799,-500.0,0.00054794,120]
[319511984,1710815454809,-477.77881109,0.00054794,120]
[319511985,1710815454819,-500.0,0.00054794,7]
[319511986,1710815454828,-500.0,0.00054794,120]
[319511987,1710815454838,-500.0,0.00054794,120]
[319511988,1710815454847,-500.0,0.00054794,120]
[319511989,1710815454857,-500.0,0.00054794,120]
[319511990,1710815454866,-500.0,0.00054794,120]
[319511991,1710815454876,-500.0,0.00054794,120]
[319511992,1710815454886,-500.0,0.00054794,120]
[319511993,1710815454895,-2445.6,0.00054794,120]
[319511994,1710815454904,-1714.56,0.00054794,120]
[319511995,1710815454914,-500.0,0.00054794,120]
[319511996,1710815454923,-500.0,0.00054794,120]
[319511997,1710815454932,-549.98,0.00054794,120]
[319511998,1710815454943,-993.9,0.00054794,120]
[319511999,1710815454953,-500.0,0.00054794,120]
[319512000,1710815454962,-500.0,0.00054794,120]
[319512001,1710815454971,-500.0,0.00054794,120]
[319512002,1710815454980,-375.47063967,0.00054794,120]
[319512003,1710815454990,-500.0,0.00054794,120]
[319512004,1710815454999,-658.87,0.00054794,120]
[319512005,1710815455008,-500.0,0.00054794,120]
[319512006,1710815455017,-637.11,0.00054794,120]
[319512007,1710815455026,-500.0,0.00054794,120]
[319512008,1710815455035,-500.0,0.00054794,120]
[319512009,1710815455046,-500.0,0.00054794,120]
[319512010,1710815455055,-1643.61,0.00054794,120]
[319512011,1710815455065,-500.0,0.00054794,120]
[319512012,1710815455076,-500.0,0.00054794,120]
[319512013,1710815455087,-500.0,0.00054794,120]
[319512014,1710815455096,-500.0,0.00054794,120]
[319512015,1710815455105,-1809.66,0.00054794,120]
[319512016,1710815455114,-500.0,0.00054794,120]
[319512017,1710815455123,-500.0,0.00054794,120]
[319512018,1710815455132,-500.0,0.00054794,120]
[319512019,1710815455141,-500.0,0.00054794,120]
[319512020,1710815455150,-539.49649044,0.00054794,120]
[319512021,1710815455159,-571.91,0.00054794,120]
[319512022,1710815455168,-751.86,0.00054794,120]
[319512023,1710815455178,-541.8,0.00054794,120]
[319512024,1710815455190,-500.0,0.00054794,120]
[319512025,1710815455199,-1299.29,0.00054794,120]
[319512026,1710815455208,-500.0,0.00054794,120]
[319512027,1710815455217,-367.17412843,0.00054794,120]
[319512028,1710815455229,-16186.27,0.00054794,120]
[319512029,1710815455240,-924.93,0.00054794,120]
[319512030,1710815455250,-500.0,0.00054794,120]
[319512031,1710815455261,-500.0,0.00054794,120]
[319512032,1710815455272,-1654.05,0.00054794,120]
[319512033,1710815455284,-500.0,0.00054794,120]
[319512034,1710815455293,-500.0,0.00054794,120]
[319512035,1710815455303,-500.0,0.00054794,120]
[319512036,1710815455313,-500.0,0.00054794,120]
[319512037,1710815455323,-804.39,0.00054794,120]
[319512038,1710815455333,-500.0,0.00054794,120]
[319512039,1710815455342,-500.0,0.00054794,120]
[319512040,1710815455352,-782.74,0.00054794,120]
[319512041,1710815455362,-2232.31,0.00054794,120]
[319512042,1710815455372,-500.0,0.00054794,120]
[319512043,1710815455382,-604.38,0.00054794,120]
[319512044,1710815455391,-500.0,0.00054794,120]
[319512045,1710815455400,-500.0,0.00054794,120]
[319512046,1710815455409,-2164.67,0.00054794,120]
[319512047,1710815455419,-1663.42,0.00054794,120]
[319512048,1710815455428,-500.0,0.00054794,120]
[319512049,1710815455437,-500.0,0.00054794,120]
[319512050,1710815455446,-500.0,0.00054794,120]
[319512051,1710815455455,-500.0,0.00054794,120]
[319512052,1710815455465,-1083.83,0.00054794,120]
[319512053,1710815455474,-500.0,0.00054794,120]
[319512054,1710815455485,-500.0,0.00054794,120]
[319512055,1710815455494,-500.0,0.00054794,120]
[319512056,1710815455503,-500.0,0.00054794,120]
[319512057,1710815455512,-1157.87,0.00054794,120]
[319512058,1710815455521,-500.0,0.00054794,120]
[319512059,1710815455530,-981.98,0.00054794,120]
[319512060,1710815455540,-2476.44,0.00054794,120]
[319512061,1710815455549,-500.0,0.00054794,120]
[319512062,1710815455558,-500.0,0.00054794,120]
[319512063,1710815455568,-500.0,0.00054794,120]
[319512064,1710815455577,-500.0,0.00054794,120]
[319512065,1710815455586,-500.0,0.00054794,120]
[319512066,1710815455596,-500.0,0.00054794,120]
[319512067,1710815455606,-500.0,0.00054794,120]
[319512068,1710815455616,-1219.47,0.00054794,120]
[319512069,1710815455626,-500.0,0.00054794,120]
[319512070,1710815455636,-500.0,0.00054794,120]
[319512071,1710815455647,-231.810618,0.00054794,120]
[319512072,1710815455659,-500.0,0.00054794,120]
[319512073,1710815455670,-500.0,0.00054794,120]
[319512074,1710815455680,-500.0,0.00054794,120]
[319512075,1710815455688,-642.22,0.00054794,120]
[319512076,1710815455698,-599.14,0.00054794,120]
[319512077,1710815455708,-500.0,0.00054794,120]
[319512078,1710815455717,-1485.41,0.00054794,120]
[319512079,1710815455725,-500.0,0.00054794,120]
[319512080,1710815455734,-500.0,0.00054794,120]
[319512081,1710815455744,-500.0,0.00054794,120]
[319512082,1710815455755,-1972.44,0.00054794,120]
[319512083,1710815455766,-151.0,0.00054794,120]
[319512084,1710815455777,-500.0,0.00054794,120]
[319512085,1710815455787,-500.0,0.00054794,120]
[319512086,1710815455796,-500.0,0.00054794,120]
[319512087,1710815455805,-1072.41646923,0.00054794,120]
[319512088,1710815455814,-612.66,0.00054794,120]
[319512089,1710815455823,-500.0,0.00054794,120]
[319512090,1710815455832,-500.0,0.00054794,120]
[319512091,1710815455841,-151.0,0.00054794,120]
[319512092,1710815455850,-204.308384,0.00054794,120]
[319512093,1710815455859,-500.0,0.00054794,120]
[319512094,1710815455869,-373.54922619,0.00054794,120]
[319512095,1710815455879,-500.0,0.00054794,120]
[319512096,1710815455889,-500.0,0.00054794,120]
[319512097,1710815455899,-838.69,0.00054794,120]
[319512098,1710815455908,-365.2582835,0.00054794,120]
[319512099,1710815455919,-32857.21,0.00054794,120]
[319512100,1710815456088,-500.0,0.00054794,120]
[319512101,1710815456099,-500.0,0.00054794,120]
[319512102,1710815456110,-1020.12,0.00054794,120]
[319512103,1710815456120,-500.0,0.00054794,120]
[319512104,1710815456129,-500.0,0.00054794,120]
[319512105,1710815456138,-500.0,0.00054794,120]
[319512106,1710815456148,-1152.99,0.00054794,120]
[319512107,1710815456157,-500.0,0.00054794,120]
[319512108,1710815456167,-204.308384,0.00054794,120]
[319512109,1710815456177,-500.0,0.00054794,120]
[319512110,1710815456187,-500.0,0.00054794,120]
[319512111,1710815456196,-500.0,0.00054794,120]
[319512112,1710815456206,-664.68,0.00054794,120]
[319512113,1710815456216,-1322.53,0.00054794,120]
[319512114,1710815456227,-500.0,0.00054794,120]
[319512115,1710815456237,-500.0,0.00054794,120]
[319512116,1710815456246,-739.93,0.00054794,120]
[319512117,1710815456256,-620.82,0.00054794,120]
[319512118,1710815456265,-512.66,0.00054794,120]
[319512119,1710815456275,-1391.81,0.00054794,120]
[319512120,1710815456284,-591.3,0.00054794,120]
[319512121,1710815456295,-2417.04,0.00054794,120]
[319512122,1710815456305,-500.0,0.00054794,120]
[319512123,1710815456315,-1859.74,0.00054794,120]
[319512124,1710815456324,-500.0,0.00054794,120]
[319512125,1710815456333,-500.0,0.00054794,120]
[319512126,1710815456342,-502.34,0.00054794,120]
[319512127,1710815456351,-500.0,0.00054794,120]
[319512128,1710815456361,-500.0,0.00054794,120]
[319512129,1710815456370,-500.19036562,0.00054794,120]
[319512130,1710815456379,-504.30720314,0.00054794,120]
[319512131,1710815456389,-1209.59,0.00054794,120]
[319512132,1710815456398,-1336.54,0.00054794,120]
[319512133,1710815456407,-1868.97,0.00054794,120]
[319512134,1710815456420,-500.0,0.00054794,120]
[319512135,1710815456430,-500.0,0.00054794,120]
[319512136,1710815456439,-857.41,0.00054794,120]
[319512137,1710815456448,-500.0,0.00054794,120]
[319512138,1710815456458,-500.0,0.00054794,120]
[319512139,1710815456467,-1577.63,0.00054794,120]
[319512140,1710815456476,-1079.47,0.00054794,120]
[319512141,1710815456485,-500.0,0.00054794,120]
[319512142,1710815456495,-500.0,0.00054794,120]
[319512143,1710815456505,-3157.89,0.00054794,120]
[319512144,1710815456514,-500.0,0.00054794,120]
[319512145,1710815456523,-1904.43,0.00054794,120]
[319512146,1710815456532,-500.0,0.00054794,120]
[319512147,1710815456541,-500.0,0.00054794,120]
[319512148,1710815456551,-500.0,0.00054794,120]
[319512149,1710815456560,-704.11,0.00054794,120]
[319512150,1710815456569,-500.0,0.00054794,120]
[319512151,1710815456579,-568.52,0.00054794,120]
[319512152,1710815456588,-500.0,0.00054794,120]
[319512153,1710815456598,-500.0,0.00054794,120]
[319512154,1710815456607,-1719.61,0.00054794,120]
[319512155,1710815456617,-500.0,0.00054794,120]
[319512156,1710815456626,-500.0,0.00054794,120]
[319512157,1710815456635,-500.0,0.00054794,120]
[319512158,1710815456644,-500.0,0.00054794,120]
[319512159,1710815456653,-500.0,0.00054794,120]
[319512160,1710815456664,-500.0,0.00054794,120]
[319512161,1710815456673,-659.47,0.00054794,120]
[319512162,1710815456683,-500.0,0.00054794,120]
[319512163,1710815456693,-500.0,0.00054794,120]
[319512164,1710815456702,-151.0,0.00054794,120]
[319512165,1710815456712,-500.0,0.00054794,120]
[319512166,1710815456722,-1193.75,0.00054794,120]
[319512167,1710815456731,-500.0,0.00054794,120]
[319512168,1710815456741,-500.0,0.00054794,120]
[319512169,1710815456750,-500.0,0.00054794,120]
[319512170,1710815456759,-515.18,0.00054794,120]
[319512171,1710815456769,-1053.46,0.00054794,120]
[319512172,1710815456778,-500.0,0.00054794,120]
[319512173,1710815456787,-500.0,0.00054794,120]
[319512174,1710815456796,-1220.11,0.00054794,120]
[319512175,1710815456805,-502.30797556,0.00054794,120]
[319512176,1710815456815,-986.04,0.00054794,120]
[319512177,1710815456824,-500.0,0.00054794,120]
[319512178,1710815456833,-500.0,0.00054794,120]
[319512179,1710815456842,-500.0,0.00054794,120]
[319512180,1710815456851,-500.0,0.00054794,2]
[319512181,1710815456860,-2226.45,0.00054794,120]
[319512182,1710815456869,-500.0,0.00054794,120]
[319512183,1710815456879,-500.0,0.00054794,120]
[319512184,1710815456888,-500.0,0.00054794,120]
[319512185,1710815456897,-500.0,0.00054794,120]
[319512186,1710815456906,-2834.4,0.00054794,120]
[319512187,1710815456916,-500.0,0.00054794,120]
[319512188,1710815456925,-500.0,0.00054794,120]
[319512189,1710815456934,-500.0,0.00054794,120]
[319512190,1710815456945,-500.0,0.00054794,120]
[319512191,1710815456954,-500.0,0.00054794,120]
[319512192,1710815456963,-500.0,0.00054794,120]
[319512193,1710815456972,-500.0,0.00054794,120]
[319512194,1710815456981,-500.0,0.00054794,120]
[319512195,1710815456990,-500.0,0.00054794,120]
[319512196,1710815456999,-500.0,0.00054794,120]
[319512197,1710815457009,-1857.95,0.00054794,120]
[319512198,1710815457018,-500.0,0.00054794,120]
[319512199,1710815457027,-708.11,0.00054794,120]
[319512200,1710815457037,-500.0,0.00054794,120]
[319512201,1710815457047,-500.0,0.00054794,120]
[319512202,1710815457056,-500.0,0.00054794,120]
[319512203,1710815457066,-1836.13,0.00054794,120]
[319512204,1710815457075,-500.0,0.00054794,120]
[319512205,1710815457084,-542.35,0.00054794,120]
[319512206,1710815457093,-500.0,0.00054794,120]
[319512207,1710815457102,-380.10105898,0.00054794,120]
[319512208,1710815457111,-500.0,0.00054794,120]
[319512209,1710815457121,-500.69217311,0.00054794,120]
[319512210,1710815457130,-4718.43,0.00054794,120]
[319512211,1710815457140,-1843.04,0.00054794,21]
[319512212,1710815457149,-500.0,0.00054794,120]
[319512213,1710815457158,-500.0,0.00054794,120]
[319512214,1710815457169,-2910.34,0.00054794,120]
[319512215,1710815457178,-1062.84,0.00054794,120]
[319512216,1710815457189,-500.0,0.00054794,120]
[319512217,1710815457199,-1125.52,0.00054794,120]
[319512218,1710815457208,-961.78,0.00054794,120]
[319512219,1710815457220,-500.0,0.00054794,120]
[319512220,1710815457230,-500.0,0.00054794,120]
[319512221,1710815457239,-453.39933354,0.00054794,120]
[319512222,1710815457248,-500.0,0.00054794,120]
[319512223,1710815457258,-500.0,0.00054794,120]
[319512224,1710815457268,-2959.23,0.00054794,120]
[319512225,1710815457278,-500.0,0.00054794,120]
[319512226,1710815457287,-500.0,0.00054794,120]
[319512227,1710815457298,-552.3,0.00054794,120]
[319512228,1710815457307,-500.0,0.00054794,120]
[319512229,1710815457316,-500.0,0.00054794,120]
[319512230,1710815457327,-1955.63,0.00054794,120]
[319512231,1710815457336,-500.0,0.00054794,120]
[319512232,1710815457346,-500.0,0.00054794,120]
[319512233,1710815457355,-500.0,0.00054794,120]
[319512234,1710815457365,-500.0,0.00054794,120]
[319512235,1710815457374,-1219.87,0.00054794,120]
[319512236,1710815457384,-503.28478582,0.00054794,60]
[319512237,1710815457395,-500.0,0.00054794,120]
[319512238,1710815457404,-957.07,0.00054794,120]
[319512239,1710815457414,-500.0,0.00054794,120]
[319512240,1710815457425,-1129.87,0.00054794,120]
[319512241,1710815457435,-500.0,0.00054794,120]
[319512242,1710815457444,-500.0,0.00054794,120]
[319512243,1710815457455,-500.0,0.00054794,120]
[319512244,1710815457465,-822.28,0.00054794,120]
[319512245,1710815457474,-3467.49,0.00054794,120]
[319512246,1710815457487,-500.0,0.00054794,120]
[319512247,1710815457497,-1614.59,0.00054794,120]
[319512248,1710815457506,-500.0,0.00054794,120]
[319512249,1710815457516,-3731.32,0.00054794,120]
[319512250,1710815457525,-500.0,0.00054794,120]
[319512251,1710815457534,-500.0,0.00054794,120]
[319512252,1710815457544,-500.0,0.00054794,120]
[319512253,1710815457553,-500.0,0.00054794,120]
[319512254,1710815457562,-500.0,0.00054794,120]
[319512255,1710815457572,-500.0,0.00054794,120]
[319512256,1710815457581,-961.27,0.00054794,120]
[319512257,1710815457590,-500.0,0.00054794,120]
[319512258,1710815457599,-500.0,0.00054794,120]
[319512259,1710815457609,-500.0,0.00054794,120]
[319512260,1710815457618,-502.2706203,0.00054794,120]
[319512261,1710815457626,-500.0,0.00054794,120]
[319512262,1710815457636,-1724.04,0.00054794,120]
[319512263,1710815457645,-1244.55,0.00054794,120]
[319512264,1710815457654,-151.0,0.00054794,120]
[319512265,1710815457664,-500.0,0.00054794,120]
[319512266,1710815457673,-1361.94,0.00054794,120]
[319512267,1710815457682,-1493.98,0.00054794,120]
[319512268,1710815457691,-500.0,0.00054794,120]
[319512269,1710815457700,-500.0,0.00054794,120]
[319512270,1710815457709,-557.1,0.00054794,120]
[319512271,1710815457719,-500.0,0.00054794,120]
[319512272,1710815457727,-500.0,0.00054794,120]
[319512273,1710815457736,-503.38905939,0.00054794,120]
[319512274,1710815457746,-500.0,0.00054794,120]
[319512275,1710815457755,-1193.96,0.00054794,120]
[319512276,1710815457764,-500.0,0.00054794,120]
[319512277,1710815457774,-500.0,0.00054794,120]
[319512278,1710815457783,-500.0,0.00054794,120]
[319512279,1710815457792,-500.0,0.00054794,120]
[319512280,1710815457801,-1296.76,0.00054794,120]
[319512281,1710815457810,-500.0,0.00054794,120]
[319512282,1710815457819,-1401.66,0.00054794,120]
[319512283,1710815457828,-500.0,0.00054794,120]
[319512284,1710815457837,-1463.59,0.00054794,120]
[319512285,1710815457846,-500.0,0.00054794,120]
[319512286,1710815457855,-500.0,0.00054794,120]
[319512287,1710815457864,-656.42,0.00054794,120]
[319512288,1710815457873,-656.42,0.00054794,120]
[319512289,1710815457881,-656.42,0.00054794,120]
[319512290,1710815457890,-656.42,0.00054794,120]
[319512291,1710815457899,-656.42,0.00054794,120]
[319512292,1710815457908,-656.42,0.00054794,120]
[319512293,1710815457918,-500.0,0.00054794,120]
[319512294,1710815457928,-656.42,0.00054794,120]
[319512295,1710815457937,-656.42,0.00054794,120]
[319512296,1710815457948,-2724.62,0.00054794,120]
[319512297,1710815457958,-656.42,0.00054794,120]
[319512298,1710815457967,-656.42,0.00054794,120]
[319512299,1710815457976,-656.42,0.00054794,120]
[319512300,1710815457985,-656.42,0.00054794,120]
[319512301,1710815457995,-500.0,0.00054794,120]
[319512302,1710815458004,-500.0,0.00054794,120]
[319512303,1710815458014,-656.42,0.00054794,120]
[319512304,1710815458025,-500.0,0.00054794,120]
[319512305,1710815458034,-656.42,0.00054794,120]
[319512306,1710815458043,-500.0,0.00054794,120]
[319512307,1710815458053,-656.42,0.00054794,120]
[319512308,1710815458062,-501.64895376,0.00054794,120]
[319512309,1710815458071,-656.42,0.00054794,120]
[319512310,1710815458081,-656.42,0.00054794,120]
[319512311,1710815458091,-656.42,0.00054794,120]
[319512312,1710815458100,-656.42,0.00054794,120]
[319512313,1710815458110,-500.0,0.00054794,120]
[319512314,1710815458120,-1295.46,0.00054794,120]
[319512315,1710815458130,-656.42,0.00054794,120]
[319512316,1710815458139,-656.42,0.00054794,120]
[319512317,1710815458150,-369.52085127,0.00054794,120]
[319512318,1710815458159,-2130.32,0.00054794,120]
[319512319,1710815458170,-1974.77,0.00054794,120]
[319512320,1710815458180,-656.42,0.00054794,120]
[319512321,1710815458192,-500.0,0.00054794,120]
[319512322,1710815458201,-656.42,0.00054794,120]
[319512323,1710815458210,-656.64862867,0.00054794,120]
[319512324,1710815458223,-519.49,0.00054794,120]
[319512325,1710815458234,-519.49,0.00054794,120]
[319512326,1710815458244,-519.49,0.00054794,120]
[319512327,1710815458253,-657.52,0.00054794,120]
[319512328,1710815458262,-500.0,0.00054794,120]
[319512329,1710815458272,-500.0,0.00054794,120]
[319512330,1710815458282,-519.49,0.00054794,120]
[319512331,1710815458292,-519.49,0.00054794,120]
[319512332,1710815458302,-500.0,0.00054794,120]
[319512333,1710815458311,-519.49,0.00054794,120]
[319512334,1710815458321,-500.0,0.00054794,120]
[319512335,1710815458331,-519.49,0.00054794,120]
[319512336,1710815458342,-1422.76,0.00054794,120]
[319512337,1710815458352,-519.49,0.00054794,120]
[319512338,1710815458362,-500.0,0.00054794,120]
[319512339,1710815458373,-519.49,0.00054794,120]
[319512340,1710815458383,-519.49,0.00054794,120]
[319512341,1710815458393,-519.49,0.00054794,120]
[319512342,1710815458403,-500.0,0.00054794,120]
[319512343,1710815458412,-519.49,0.00054794,120]
[319512344,1710815458425,-519.49,0.00054794,120]
[319512345,1710815458435,-500.59320576,0.00054794,120]
[319512346,1710815458444,-519.49,0.00054794,120]
[319512347,1710815458453,-519.49,0.00054794,120]
[319512348,1710815458462,-1557.62,0.00054794,120]
[319512349,1710815458472,-519.49,0.00054794,120]
[319512350,1710815458481,-519.49,0.00054794,120]
[319512351,1710815458490,-500.0,0.00054794,120]
[319512352,1710815458499,-519.49,0.00054794,120]
[319512353,1710815458509,-519.49,0.00054794,120]
[319512354,1710815458519,-500.0,0.00054794,120]
[319512355,1710815458528,-519.49,0.00054794,120]
[319512356,1710815458537,-1606.02,0.00054794,120]
[319512357,1710815458547,-519.49,0.00054794,120]
[319512358,1710815458557,-500.0,0.00054794,120]
[319512359,1710815458566,-519.49,0.00054794,120]
[319512360,1710815458575,-1089.25,0.00054794,120]
[319512361,1710815458584,-519.49,0.00054794,120]
[319512362,1710815458593,-1777.9,0.00054794,120]
[319512363,1710815458602,-519.52606347,0.00054794,120]
[319512364,1710815458611,-500.0,0.00054794,120]
[319512365,1710815458621,-310.0,0.00054794,120]
[319512366,1710815458630,-230.20958545,0.00054794,120]
[319512367,1710815458639,-500.0,0.00054794,120]
[319512368,1710815458647,-1205.53,0.00054794,120]
[319512369,1710815458656,-2696.99,0.00054794,120]
[319512370,1710815458666,-1152.46,0.00054794,120]
[319512371,1710815458675,-500.0,0.00054794,120]
[319512372,1710815458844,-846.6,0.00054794,120]
[319512373,1710815458855,-810.32,0.00054794,120]
[319512374,1710815458866,-500.0,0.00054794,120]
[319512375,1710815458875,-500.0,0.00054794,120]
[319512376,1710815458885,-500.0,0.00054794,120]
[319512377,1710815458893,-2202.94,0.00054794,120]
[319512378,1710815458902,-500.0,0.00054794,120]
[319512379,1710815458911,-2109.59,0.00054794,120]
[319512380,1710815458922,-500.0,0.00054794,120]
[319512381,1710815458930,-500.0,0.00054794,120]
[319512382,1710815458940,-1027.56,0.00054794,120]
[319512383,1710815458949,-500.75600963,0.00054794,2]
[319512384,1710815458958,-500.0,0.00054794,120]
[319512385,1710815458967,-500.0,0.00054794,120]
[319512386,1710815458977,-500.0,0.00054794,120]
[319512387,1710815458986,-500.0,0.00054794,120]
[319512388,1710815458995,-500.0,0.00054794,120]
[319512389,1710815459004,-500.0,0.00054794,120]
[319512390,1710815459013,-1860.38,0.00054794,120]
[319512391,1710815459023,-500.0,0.00054794,120]
[319512392,1710815459032,-503.41517308,0.00054794,120]
[319512393,1710815459041,-500.0,0.00054794,120]
[319512394,1710815459051,-500.3393353,0.00054794,120]
[319512395,1710815459071,-500.0,0.00054794,120]